[Event "GCT Paris Rapid 2019"]
[Site "Paris"]
[Date "2019.07.27"]
[Round "1.1"]
[White "Nakamura, Hikaru"]
[Black "Caruana, Fabiano"]
[Result "0-1"]
[ECO "E48"]
[WhiteElo "2754"]
[BlackElo "2819"]
[Annotator "RC"]
[PlyCount "74"]
[EventDate "2019.07.26"]
[EventType "tourn"]
[EventCountry "FRA"]
[SourceTitle "playchess.com"]
[Source "ChessBase"]
[SourceQuality "1"]
[TimeMode "Bronstein"]
[TimeControl "1500+10"]

1. d4 {[%emt 0:00:00]} Nf6 {[%emt 0:00:00]} 2. c4 {[%emt 0:00:00]} e6 {[%emt 0:00:00]} 3. Nc3 {[%emt 0:00:00]} Bb4 {[%emt 0:00:00]} 4. e3 {[%emt 0:00:00]} O-O {[%emt 0:00:00]} 5. Bd3 {[%emt 0:00:00]} c5 {[%emt 0:00:04]} 6. Nge2 {[%emt 0:00:00]} d5 {[%emt 0:00:04]} 7. cxd5 {[%emt 0:00:00]} exd5 {[%emt 0:00:04]} 8. O-O {[%emt 0:00:25]} c4 {[%emt 0:02:31]} 9. Bc2 {[%emt 0:00:10]} Nc6 {[%emt 0:00:10]} 10. a3 {[%emt 0:00:47]} Ba5 {[%emt 0:00:16]} 11. f3 {[%emt 0:01:50]} Re8 {[%emt 0:00:10]} 12. b3 {[%emt 0:00:10]} cxb3 {[%emt 0:00:23]} 13. Bxb3 {[%emt 0:00:10]} Bf5 {[%emt 0:00:56]} 14. g4 {[%emt 0:03:30]} Bg6 {[%emt 0:00:15]} 15. Bd2 {[%emt 0:01:23]} Rc8 {[%emt 0:00:58]} 16. Rc1 {[%emt 0:00:47]} Bc7 {[%emt 0:01:36]} 17. g5 {[%emt 0:02:26]} Nh5 {[%emt 0:02:42]} 18. f4 {[%emt 0:00:10]} Ne7 {[%emt 0:00:10]} 19. Ba4 {[%emt 0:00:10]} Rf8 {[%emt 0:00:10]} 20. Ng3 {[%emt 0:00:56]} Nxg3 {[%emt 0:00:10]} 21. hxg3 {[%emt 0:00:10]} Ba5 {[%emt 0:01:04]} 22. g4 {[%emt 0:00:33]} Bd3 {[%emt 0:00:39]} 23. Rf2 {[%emt 0:00:14]} Qd6 {[%emt 0:00:10]} 24. Be1 {[%emt 0:01:19]} Qa6 {[%emt 0:02:02]} 25. Bb3 {[%emt 0:00:42]} Bxc3 {[%emt 0:00:26]} 26. Bxc3 {[%emt 0:00:52]} Be4 {[%emt 0:00:10]} 27. Bb4 {[%emt 0:00:20]} Rxc1 {[%emt 0:00:15]} 28. Qxc1 {[%emt 0:00:10]} Rc8 {[%emt 0:00:10]} 29. Qf1 {[%emt 0:00:23]} Qb6 {[%emt 0:00:56]} 30. Qd1 {[%emt 0:00:26]} Qc7 {[%emt 0:00:48]} 31. Rf1 {[%emt 0:05:17]} a5 {[%emt 0:00:43]} 32. Bd2 {[%emt 0:00:10]} Qd6 {[%emt 0:01:19]} 33. a4 {[%emt 0:03:07]} h6 {[%emt 0:00:10]} 34. g6 {[%emt 0:00:23]} Nxg6 {[%emt 0:02:00]} 35. Bxa5 {[%emt 0:00:10]} Qa3 {[%emt 0:00:13]} 36. Bd2 {[%emt 0:00:21]} Nh4 {[%emt 0:00:15]} 37. g5 {[%emt 0:00:32]} Nf3+ {[%emt 0:00:26]} 0-1

[Event "GCT Paris Rapid 2019"]
[Site "Paris"]
[Date "2019.07.27"]
[Round "1.2"]
[White "Dubov, Daniil"]
[Black "Vachier-Lagrave, Maxime"]
[Result "0-1"]
[ECO "A33"]
[WhiteElo "2700"]
[BlackElo "2775"]
[Annotator "RC"]
[PlyCount "124"]
[EventDate "2019.07.26"]
[EventType "tourn"]
[EventCountry "FRA"]
[SourceTitle "playchess.com"]
[Source "ChessBase"]
[SourceQuality "1"]
[TimeMode "Bronstein"]
[TimeControl "1500+10"]

1. c4 {[%emt 0:00:00]} c5 {[%emt 0:00:00]} 2. Nf3 {[%emt 0:00:00]} Nf6 {[%emt 0:00:00]} 3. d4 {[%emt 0:00:00]} cxd4 {[%emt 0:00:00]} 4. Nxd4 {[%emt 0:00:00]} e6 {[%emt 0:00:00]} 5. Nc3 {[%emt 0:00:00]} Nc6 {[%emt 0:00:00]} 6. g3 {[%emt 0:00:00]} Qb6 {[%emt 0:00:00]} 7. Ndb5 {[%emt 0:00:00]} Ne5 {[%emt 0:00:00]} 8. Bg2 {[%emt 0:00:00]} a6 {[%emt 0:01:15]} 9. Na4 {[%emt 0:00:00]} Qd8 {[%emt 0:01:05]} 10. Nd6+ {[%emt 0:00:00]} Bxd6 {[%emt 0:00:10]} 11. Qxd6 {[%emt 0:00:00]} Nxc4 {[%emt 0:00:10]} 12. Qc5 {[%emt 0:00:00]} d5 {[%emt 0:00:10]} 13. b3 {[%emt 0:00:00]} Bd7 {[%emt 0:00:10]} 14. bxc4 {[%emt 0:00:00]} Bxa4 {[%emt 0:00:10]} 15. Qa3 {[%emt 0:00:05]} Qd7 {[%emt 0:04:23]} 16. Bb2 {[%emt 0:00:25]} b5 {[%emt 0:01:09]} 17. cxd5 {[%emt 0:02:31]} exd5 {[%emt 0:01:44]} 18. Bxf6 {[%emt 0:04:08]} gxf6 {[%emt 0:00:10]} 19. O-O {[%emt 0:00:18]} Qe7 {[%emt 0:00:30]} 20. Qf3 {[%emt 0:01:35]} O-O {[%emt 0:01:14]} 21. Qg4+ {[%emt 0:00:10]} Kh8 {[%emt 0:00:10]} 22. Bxd5 {[%emt 0:00:10]} Rad8 {[%emt 0:00:46]} 23. e4 {[%emt 0:00:27]} b4 {[%emt 0:00:51]} 24. Rac1 {[%emt 0:01:11]} Bd7 {[%emt 0:00:20]} 25. Qf4 {[%emt 0:01:31]} Bb5 {[%emt 0:01:36]} 26. Rc7 {[%emt 0:02:33]} Qd6 {[%emt 0:00:10]} 27. Qxd6 {[%emt 0:01:14]} Rxd6 {[%emt 0:00:10]} 28. Rb1 {[%emt 0:00:16]} a5 {[%emt 0:00:11]} 29. a3 {[%emt 0:01:38]} f5 {[%emt 0:00:35]} 30. f3 {[%emt 0:03:30]} fxe4 {[%emt 0:00:10]} 31. fxe4 {[%emt 0:00:10]} f5 {[%emt 0:00:10]} 32. axb4 {[%emt 0:00:43]} Bd3 {[%emt 0:00:10]} 33. Re1 {[%emt 0:00:34]} axb4 {[%emt 0:00:57]} 34. Rb7 {[%emt 0:00:18]} Re8 {[%emt 0:01:06]} 35. Bf7 {[%emt 0:00:37]} Rxe4 {[%emt 0:00:10]} 36. Rc1 {[%emt 0:02:15]} Rd8 {[%emt 0:00:10]} 37. Rd1 {[%emt 0:00:32]} f4 {[%emt 0:02:27]} 38. Bb3 {[%emt 0:00:58]} Red4 {[%emt 0:01:43]} 39. Rf7 {[%emt 0:00:33]} fxg3 {[%emt 0:00:25]} 40. hxg3 {[%emt 0:00:10]} Bg6 {[%emt 0:01:11]} 41. Rf8+ {[%emt 0:00:10]} Rxf8 {[%emt 0:00:10]} 42. Rxd4 {[%emt 0:00:10]} Rb8 {[%emt 0:00:10]} 43. Kf2 {[%emt 0:00:10]} Kg7 {[%emt 0:00:10]} 44. Ke3 {[%emt 0:00:14]} Rb6 {[%emt 0:00:25]} 45. g4 {[%emt 0:00:12]} Kf6 {[%emt 0:00:10]} 46. Kf4 {[%emt 0:00:10]} Bf7 {[%emt 0:01:10]} 47. g5+ {[%emt 0:00:10]} Ke7 {[%emt 0:00:10]} 48. Bc2 {[%emt 0:00:15]} Bg8 {[%emt 0:00:10]} 49. Re4+ {[%emt 0:00:10]} Kf8 {[%emt 0:00:10]} 50. Bb1 {[%emt 0:00:12]} b3 {[%emt 0:00:35]} 51. Ra4 {[%emt 0:00:10]} Rb7 {[%emt 0:00:24]} 52. Ke3 {[%emt 0:00:10]} Kg7 {[%emt 0:00:11]} 53. Kd2 {[%emt 0:00:10]} Bf7 {[%emt 0:00:10]} 54. Rh4 {[%emt 0:00:16]} Bg6 {[%emt 0:00:10]} 55. Rh1 {[%emt 0:00:12]} b2 {[%emt 0:00:17]} 56. Kc3 {[%emt 0:00:10]} Bxb1 {[%emt 0:00:10]} 57. Rxb1 {[%emt 0:00:10]} Kg6 {[%emt 0:00:10]} 58. Kc2 {[%emt 0:00:10]} Rb8 {[%emt 0:00:15]} 59. Kc3 {[%emt 0:00:11]} Kxg5 {[%emt 0:00:10]} 60. Kc2 {[%emt 0:00:10]} h5 {[%emt 0:00:10]} 61. Rg1+ {[%emt 0:00:10]} Kh6 {[%emt 0:00:10]} 62. Kb1 {[%emt 0:00:10]} h4 {[%emt 0:00:10]} 0-1

[Event "GCT Paris Rapid 2019"]
[Site "Paris"]
[Date "2019.07.27"]
[Round "2.5"]
[White "Giri, Anish"]
[Black "Anand, Viswanathan"]
[Result "0-1"]
[ECO "E11"]
[WhiteElo "2779"]
[BlackElo "2764"]
[Annotator "RC"]
[PlyCount "127"]
[EventDate "2019.07.26"]
[EventType "tourn"]
[EventCountry "FRA"]
[SourceTitle "playchess.com"]
[Source "ChessBase"]
[SourceQuality "1"]
[TimeMode "Bronstein"]
[TimeControl "1500+10"]

1. d4 {[%emt 0:00:00]} Nf6 {[%emt 0:00:00]} 2. c4 {[%emt 0:00:00]} e6 {[%emt 0:00:00]} 3. Nf3 {[%emt 0:00:00]} Bb4+ {[%emt 0:00:00]} 4. Bd2 {[%emt 0:00:00]} Qe7 {[%emt 0:00:00]} 5. g3 {[%emt 0:00:00]} Nc6 {[%emt 0:00:02]} 6. Nc3 {[%emt 0:00:01]} Bxc3 {[%emt 0:00:02]} 7. Bxc3 {[%emt 0:00:01]} Ne4 {[%emt 0:00:02]} 8. Rc1 {[%emt 0:00:15]} d6 {[%emt 0:00:20]} 9. Bg2 {[%emt 0:00:10]} O-O {[%emt 0:00:25]} 10. d5 {[%emt 0:00:30]} Nd8 {[%emt 0:00:23]} 11. dxe6 {[%emt 0:00:18]} Nxe6 {[%emt 0:00:10]} 12. O-O {[%emt 0:00:37]} Nxc3 {[%emt 0:01:43]} 13. Rxc3 {[%emt 0:00:10]} Bd7 {[%emt 0:00:10]} 14. Re1 {[%emt 0:00:12]} Bc6 {[%emt 0:00:13]} 15. e4 {[%emt 0:00:29]} a5 {[%emt 0:00:10]} 16. b3 {[%emt 0:00:35]} Rfe8 {[%emt 0:00:49]} 17. Rce3 {[%emt 0:00:10]} Qf6 {[%emt 0:00:43]} 18. e5 {[%emt 0:02:12]} dxe5 {[%emt 0:00:38]} 19. Nxe5 {[%emt 0:00:10]} Bxg2 {[%emt 0:01:13]} 20. Kxg2 {[%emt 0:00:10]} Rad8 {[%emt 0:00:10]} 21. Qg4 {[%emt 0:03:30]} Re7 {[%emt 0:04:18]} 22. h4 {[%emt 0:02:59]} Nf8 {[%emt 0:02:25]} 23. h5 {[%emt 0:02:51]} h6 {[%emt 0:02:23]} 24. Qe4 {[%emt 0:02:17]} Qb6 {[%emt 0:00:21]} 25. Qf3 {[%emt 0:01:22]} Nh7 {[%emt 0:01:26]} 26. Kg1 {[%emt 0:05:06]} Nf6 {[%emt 0:01:19]} 27. R3e2 {[%emt 0:00:29]} Qa6 {[%emt 0:02:39]} 28. Nd3 {[%emt 0:01:27]} Rxe2 {[%emt 0:00:10]} 29. Rxe2 {[%emt 0:00:10]} Qd6 {[%emt 0:00:10]} 30. Re3 {[%emt 0:00:20]} c6 {[%emt 0:00:19]} 31. Qf5 {[%emt 0:00:10]} Qa3 {[%emt 0:00:55]} 32. Re2 {[%emt 0:00:16]} a4 {[%emt 0:00:35]} 33. Nc5 {[%emt 0:01:21]} axb3 {[%emt 0:00:58]} 34. axb3 {[%emt 0:00:10]} b6 {[%emt 0:00:19]} 35. Ne4 {[%emt 0:00:15]} Nxe4 {[%emt 0:00:10]} 36. Rxe4 {[%emt 0:00:29]} Qxb3 {[%emt 0:00:10]} 37. Kg2 {[%emt 0:00:10]} Qb4 {[%emt 0:00:17]} 38. Qe5 {[%emt 0:00:10]} Rc8 {[%emt 0:00:55]} 39. Rg4 {[%emt 0:00:10]} Qf8 {[%emt 0:00:10]} 40. Kg1 {[%emt 0:00:14]} Kh8 {[%emt 0:00:10]} 41. Kg2 {[%emt 0:00:10]} f6 {[%emt 0:00:10]} 42. Qe6 {[%emt 0:00:10]} Qe8 {[%emt 0:00:10]} 43. Qf5 {[%emt 0:00:12]} Rd8 {[%emt 0:00:29]} 44. Re4 {[%emt 0:00:10]} Qf7 {[%emt 0:00:10]} 45. Re6 {[%emt 0:00:10]} b5 {[%emt 0:00:38]} 46. cxb5 {[%emt 0:00:21]} cxb5 {[%emt 0:00:10]} 47. Rb6 {[%emt 0:00:09]} Qd5+ {[%emt 0:00:10]} 48. Qxd5 {[%emt 0:00:09]} Rxd5 {[%emt 0:00:10]} 49. g4 {[%emt 0:00:09]} f5 {[%emt 0:00:10]} 50. f3 {[%emt 0:00:09]} fxg4 {[%emt 0:00:10]} 51. fxg4 {[%emt 0:00:09]} Kg8 {[%emt 0:00:10]} 52. Rb7 {[%emt 0:00:09]} Rg5 {[%emt 0:00:10]} 53. Kf3 {[%emt 0:00:09]} Kf8 {[%emt 0:00:10]} 54. Kf4 {[%emt 0:00:11]} Ke8 {[%emt 0:00:10]} 55. Ke3 {[%emt 0:00:10]} Kd8 {[%emt 0:00:10]} 56. Kf4 {[%emt 0:00:10]} Kc8 {[%emt 0:00:10]} 57. Ra7 {[%emt 0:00:10]} b4 {[%emt 0:00:10]} 58. Ra2 {[%emt 0:00:10]} b3 {[%emt 0:00:10]} 59. Rb2 {[%emt 0:00:10]} Rb5 {[%emt 0:00:10]} 60. Ke4 {[%emt 0:00:10]} Kd7 {[%emt 0:00:10]} 61. Kd3 {[%emt 0:00:10]} Ke6 {[%emt 0:00:10]} 62. Kc3 {[%emt 0:00:10]} Kf6 {[%emt 0:00:10]} 63. Rf2+ {[%emt 0:00:10]} Kg5 {[%emt 0:00:10]} 64. Kd4 {[%emt 0:00:22]} 0-1

[Event "GCT Paris Rapid 2019"]
[Site "Paris"]
[Date "2019.07.28"]
[Round "5.1"]
[White "Vachier-Lagrave, Maxime"]
[Black "Caruana, Fabiano"]
[Result "1-0"]
[ECO "B56"]
[WhiteElo "2775"]
[BlackElo "2819"]
[Annotator "RC"]
[PlyCount "105"]
[EventDate "2019.07.26"]
[EventType "tourn"]
[EventCountry "FRA"]
[SourceTitle "playchess.com"]
[Source "ChessBase"]
[SourceQuality "1"]
[TimeMode "Bronstein"]
[TimeControl "1500+10"]

1. e4 {[%emt 0:00:00]} c5 {[%emt 0:00:00]} 2. Nf3 {[%emt 0:00:00]} d6 {[%emt 0:00:00]} 3. d4 {[%emt 0:00:00]} cxd4 {[%emt 0:00:00]} 4. Nxd4 {[%emt 0:00:00]} Nf6 {[%emt 0:00:00]} 5. Nc3 {[%emt 0:00:00]} Nc6 {[%emt 0:00:00]} 6. g3 {[%emt 0:00:00]} Nxd4 {[%emt 0:00:00]} 7. Qxd4 {[%emt 0:00:00]} g6 {[%emt 0:00:00]} 8. e5 {[%emt 0:00:00]} dxe5 {[%emt 0:00:00]} 9. Qxd8+ {[%emt 0:00:00]} Kxd8 {[%emt 0:00:00]} 10. Bg2 {[%emt 0:00:00]} Kc7 {[%emt 0:01:04]} 11. O-O {[%emt 0:00:46]} Be6 {[%emt 0:03:09]} 12. Re1 {[%emt 0:00:36]} Nd7 {[%emt 0:01:03]} 13. Be3 {[%emt 0:00:10]} a6 {[%emt 0:04:43]} 14. a4 {[%emt 0:01:03]} Rc8 {[%emt 0:01:46]} 15. a5 {[%emt 0:00:54]} Bg7 {[%emt 0:00:38]} 16. Ra4 {[%emt 0:00:16]} Kb8 {[%emt 0:01:29]} 17. Rb4 {[%emt 0:00:10]} Rc7 {[%emt 0:00:10]} 18. Rd1 {[%emt 0:00:10]} Rhc8 {[%emt 0:00:41]} 19. Bf1 {[%emt 0:06:44]} Ka8 {[%emt 0:00:18]} 20. Na4 {[%emt 0:00:10]} f5 {[%emt 0:03:01]} 21. c4 {[%emt 0:01:26]} e4 {[%emt 0:00:48]} 22. c5 {[%emt 0:00:10]} Ne5 {[%emt 0:02:02]} 23. Nb6+ {[%emt 0:01:35]} Kb8 {[%emt 0:00:10]} 24. Nxc8 {[%emt 0:00:27]} Kxc8 {[%emt 0:00:10]} 25. Rb6 {[%emt 0:02:21]} Bd7 {[%emt 0:00:38]} 26. b4 {[%emt 0:00:25]} Ba4 {[%emt 0:00:10]} 27. Rb1 {[%emt 0:00:45]} Nd3 {[%emt 0:03:11]} 28. Be2 {[%emt 0:00:14]} Bc6 {[%emt 0:01:32]} 29. f3 {[%emt 0:00:49]} Ne5 {[%emt 0:00:23]} 30. fxe4 {[%emt 0:00:10]} Bxe4 {[%emt 0:00:10]} 31. Rd1 {[%emt 0:01:54]} Bc6 {[%emt 0:00:10]} 32. Bf4 {[%emt 0:01:13]} Bf6 {[%emt 0:00:36]} 33. h4 {[%emt 0:00:13]} Rd7 {[%emt 0:00:24]} 34. Rxd7 {[%emt 0:00:10]} Kxd7 {[%emt 0:00:10]} 35. b5 {[%emt 0:01:09]} axb5 {[%emt 0:00:10]} 36. Bxb5 {[%emt 0:00:10]} Bxb5 {[%emt 0:00:13]} 37. Rxb5 {[%emt 0:00:10]} Kc8 {[%emt 0:00:14]} 38. Bxe5 {[%emt 0:00:57]} Bxe5 {[%emt 0:00:10]} 39. c6 {[%emt 0:00:10]} Bd4+ {[%emt 0:00:10]} 40. Kg2 {[%emt 0:00:10]} bxc6 {[%emt 0:00:10]} 41. Rb1 {[%emt 0:00:37]} h6 {[%emt 0:00:14]} 42. a6 {[%emt 0:00:10]} e5 {[%emt 0:00:10]} 43. Rb7 {[%emt 0:00:10]} h5 {[%emt 0:00:11]} 44. Rg7 {[%emt 0:00:26]} Kb8 {[%emt 0:00:10]} 45. Rxg6 {[%emt 0:00:10]} c5 {[%emt 0:00:10]} 46. Kf3 {[%emt 0:00:38]} c4 {[%emt 0:00:10]} 47. Ke2 {[%emt 0:00:10]} e4 {[%emt 0:00:10]} 48. Rg5 {[%emt 0:00:30]} Be5 {[%emt 0:00:10]} 49. g4 {[%emt 0:00:10]} hxg4 {[%emt 0:00:10]} 50. Rxf5 {[%emt 0:00:10]} Bd4 {[%emt 0:00:10]} 51. Rg5 {[%emt 0:00:10]} c3 {[%emt 0:00:10]} 52. Rxg4 {[%emt 0:00:10]} Bf6 {[%emt 0:00:10]} 53. Rxe4 {[%emt 0:00:10]} 1-0